[Event "Tournoi de MI Clichy 92 2022"]
[Site "Clichy, France"]
[Date "2022.02.24"]
[Round "6.3"]
[White "Mekhane, Adam"]
[Black "Benmesbah, Natacha"]
[Result "0-1"]
[TimeControl "1H40 40 moves plus 30 minutes + 30 seconds from move one"]
[WhiteElo "2316"]
[BlackElo "2221"]

1. e4 {[%emt 00:03:28]} c5 {[%clk 01:27:38]} {[%emt 00:00:15]} 2. Nf3 {[%clk
01:30:52]} {[%emt 00:00:16]} Nc6 {[%clk 01:28:03]} {[%emt 00:00:05]} 3. d4
{[%clk 01:31:19]} {[%emt 00:00:03]} cxd4 {[%clk 01:28:31]} {[%emt 00:00:03]} 4.
Nxd4 {[%clk 01:31:43]} {[%emt 00:00:04]} e5 {[%clk 01:28:58]} {[%emt 00:00:03]}
5. Nb5 {[%clk 01:29:50]} {[%emt 00:02:23]} d6 {[%clk 01:29:22]} {[%emt
00:00:07]} 6. N1c3 {[%clk 01:28:16]} {[%emt 00:02:03]} a6 {[%clk 01:29:34]}
{[%emt 00:00:18]} 7. Na3 {[%clk 01:28:41]} {[%emt 00:00:05]} Be7 {[%clk
01:29:25]} {[%emt 00:00:39]} 8. Nc4 {[%clk 01:19:45]} {[%emt 00:09:27]} b5
{[%clk 01:29:44]} {[%emt 00:00:11]} 9. Ne3 {[%clk 01:19:38]} {[%emt 00:00:36]}
Nf6 {[%clk 01:29:45]} {[%emt 00:00:29]} 10. Bd3 {[%clk 01:12:56]} {[%emt
00:07:12]} Nb4 {[%clk 01:29:28]} {[%emt 00:00:47]} 11. a3 {[%clk 01:10:52]}
{[%emt 00:02:34]} Nxd3+ {[%clk 01:29:52]} {[%emt 00:00:07]} 12. Qxd3 {[%clk
01:09:37]} {[%emt 00:01:44]} O-O {[%clk 01:28:08]} {[%emt 00:02:14]} 13. O-O
{[%clk 01:08:57]} {[%emt 00:01:09]} Be6 {[%clk 01:27:22]} {[%emt 00:01:16]} 14.
a4 {[%clk 00:56:07]} {[%emt 00:13:21]} b4 {[%clk 01:19:53]} {[%emt 00:07:59]}
15. Ncd5 {[%clk 00:54:03]} {[%emt 00:02:33]} Nxd5 {[%clk 01:19:15]} {[%emt
00:01:08]} 16. Nxd5 {[%clk 00:45:44]} {[%emt 00:08:49]} Bxd5 {[%clk 01:15:48]}
{[%emt 00:03:57]} 17. exd5 {[%clk 00:39:34]} {[%emt 00:06:40]} f5 {[%clk
01:14:28]} {[%emt 00:01:51]} 18. a5 {[%clk 00:35:37]} {[%emt 00:04:27]} e4
{[%clk 01:06:09]} {[%emt 00:08:49]} 19. Qc4 {[%clk 00:32:05]} {[%emt 00:04:02]}
Qc8 {[%clk 01:05:33]} {[%emt 00:01:07]} 20. Qxb4 {[%clk 00:28:53]} {[%emt
00:03:42]} Qxc2 {[%clk 01:05:46]} {[%emt 00:00:16]} 21. Be3 {[%clk 00:23:54]}
{[%emt 00:05:29]} Rab8 {[%clk 00:53:44]} {[%emt 00:12:33]} 22. Bb6 {[%clk
00:22:09]} {[%emt 00:02:15]} Rfc8 {[%clk 00:48:49]} {[%emt 00:05:24]} 23. Qa3
{[%clk 00:14:44]} {[%emt 00:07:55]} Qc4 {[%clk 00:41:10]} {[%emt 00:08:10]} 24.
Rfd1 {[%clk 00:13:43]} {[%emt 00:01:31]} Qb5 {[%clk 00:40:56]} {[%emt
00:00:44]} 25. Bd4 {[%clk 00:11:46]} {[%emt 00:02:26]} Qb3 {[%clk 00:36:40]}
{[%emt 00:04:46]} 26. Qxb3 {[%clk 00:05:15]} {[%emt 00:07:01]} Rxb3 {[%clk
00:37:05]} {[%emt 00:00:05]} 27. Kf1 {[%clk 00:03:58]} {[%emt 00:01:47]} Bg5
{[%clk 00:33:21]} {[%emt 00:04:13]} 28. h4 {[%clk 00:03:40]} {[%emt 00:00:48]}
Bh6 {[%clk 00:32:45]} {[%emt 00:01:06]} 29. Bc3 {[%clk 00:03:08]} {[%emt
00:01:01]} Rc5 {[%clk 00:26:36]} {[%emt 00:06:39]} 30. Ra4 {[%clk 00:03:29]}
{[%emt 00:00:10]} Rbb5 {[%clk 00:26:15]} {[%emt 00:00:51]} 31. Rb4 {[%clk
00:03:30]} {[%emt 00:00:28]} g6 {[%clk 00:24:01]} {[%emt 00:02:44]} 32. Rxb5
{[%clk 00:03:48]} {[%emt 00:00:13]} Rxb5 {[%clk 00:24:25]} {[%emt 00:00:06]} 33.
b4 {[%clk 00:04:13]} {[%emt 00:00:05]} Kf7 {[%clk 00:19:46]} {[%emt 00:05:09]}
34. Ke2 {[%clk 00:04:13]} {[%emt 00:00:30]} Bf8 {[%clk 00:12:27]} {[%emt
00:07:48]} 35. Be1 {[%clk 00:04:02]} {[%emt 00:00:41]} Be7 {[%clk 00:08:09]}
{[%emt 00:04:49]} 36. g3 {[%clk 00:03:24]} {[%emt 00:01:08]} h6 {[%clk
00:03:22]} {[%emt 00:05:17]} 37. f3 {[%clk 00:02:06]} {[%emt 00:01:48]} exf3+
{[%clk 00:03:04]} {[%emt 00:00:48]} 38. Kxf3 {[%clk 00:02:35]} {[%emt
00:00:01]} g5 {[%clk 00:01:22]} {[%emt 00:02:12]} 39. h5 {[%clk 00:01:35]}
{[%emt 00:01:30]} Bf6 {[%clk 00:01:20]} {[%emt 00:00:32]} 40. g4 {[%clk
00:01:57]} {[%emt 00:00:09]} f4 {[%clk 00:00:59]} {[%emt 00:00:51]} 41. Ke4
{[%clk 00:01:11]} {[%emt 00:01:15]} Rb7 {[%clk 00:28:46]} {[%emt 00:02:42]} 42.
Rc1 {[%clk 00:20:56]} {[%emt 00:10:46]} Bb2 {[%clk 00:27:10]} {[%emt 00:02:06]}
43. Rb1 {[%clk 00:18:49]} {[%emt 00:02:37]} Re7+ {[%clk 00:18:52]} {[%emt
00:08:48]} 44. Kd3 {[%clk 00:14:21]} {[%emt 00:04:58]} Re3+ {[%clk 00:15:55]}
{[%emt 00:03:27]} 45. Kc2 {[%clk 00:14:37]} {[%emt 00:00:14]} Bd4 {[%clk
00:13:05]} {[%emt 00:03:21]} 46. Bf2 {[%clk 00:14:15]} {[%emt 00:00:51]} Re2+
{[%clk 00:13:19]} {[%emt 00:00:16]} 47. Kd3 {[%clk 00:14:39]} {[%emt 00:00:06]}
Rxf2 {[%clk 00:13:38]} {[%emt 00:00:11]} 48. Kxd4 {[%clk 00:15:07]} {[%emt
00:00:01]} Rg2 {[%clk 00:09:16]} {[%emt 00:04:52]} 49. b5 {[%clk 00:04:37]}
{[%emt 00:11:01]} axb5 {[%clk 00:09:41]} {[%emt 00:00:05]} 50. Rxb5 {[%clk
00:04:05]} {[%emt 00:01:01]} Rxg4 {[%clk 00:09:42]} {[%emt 00:00:29]} 51. Rb7+
{[%clk 00:02:07]} {[%emt 00:02:29]} Kf6 {[%clk 00:10:08]} {[%emt 00:00:05]} 52.
Rh7 {[%clk 00:02:15]} {[%emt 00:00:21]} f3+ {[%clk 00:09:54]} {[%emt 00:00:45]}
53. Ke3 {[%clk 00:02:44]} Rf4 {[%clk 00:03:55]} {[%emt 00:06:29]} 54. Rxh6+
{[%clk 00:02:25]} {[%emt 00:00:49]} Kf5 {[%clk 00:04:08]} {[%emt 00:00:18]} 55.
Rh8 {[%clk 00:02:01]} {[%emt 00:00:54]} Kg4 {[%clk 00:04:17]} {[%emt 00:00:21]}
56. Kf2 {[%clk 00:02:20]} {[%emt 00:00:11]} Ra4 {[%clk 00:03:26]} {[%emt
00:01:21]} 57. h6 {[%clk 00:02:34]} {[%emt 00:00:16]} Rxa5 {[%clk 00:03:05]}
{[%emt 00:00:52]} 58. Rf8 {[%clk 00:02:16]} {[%emt 00:00:47]} Ra2+ {[%clk
00:03:17]} {[%emt 00:00:18]} 59. Ke3 {[%clk 00:02:42]} {[%emt 00:00:03]} Re2+
{[%clk 00:03:33]} {[%emt 00:00:14]} 60. Kd3 {[%clk 00:03:07]} {[%emt 00:00:05]}
Re7 {[%clk 00:03:45]} {[%emt 00:00:18]} 61. Rf6 {[%clk 00:01:09]} {[%emt
00:02:28]} Kg3 {[%clk 00:04:10]} {[%emt 00:00:05]} 62. Rxd6 {[%clk 00:01:02]}
{[%emt 00:00:37]} Rf7 {[%clk 00:01:58]} {[%emt 00:02:41]} 63. h7 {[%clk
00:01:21]} {[%emt 00:00:12]} Rxh7 {[%clk 00:02:10]} {[%emt 00:00:18]} 64. Rf6
{[%clk 00:01:46]} {[%emt 00:00:04]} g4 {[%clk 00:02:03]} {[%emt 00:00:37]} 65.
d6 {[%clk 00:01:40]} {[%emt 00:00:37]} Rd7 {[%clk 00:01:57]} {[%emt 00:00:36]}
66. Ke3 {[%clk 00:01:24]} {[%emt 00:00:45]} Rd8 {[%clk 00:02:20]} {[%emt
00:00:07]} 67. Re6 {[%clk 00:00:44]} {[%emt 00:01:11]} Kg2 {[%clk 00:02:05]}
{[%emt 00:00:44]} 68. Rf6 {[%clk 00:00:36]} {[%emt 00:00:37]} Re8+ {[%clk
00:02:05]} {[%emt 00:00:31]} 69. Kf4 {[%clk 00:00:47]} {[%emt 00:00:19]} g3
{[%clk 00:02:21]} {[%emt 00:00:14]} 70. d7 {[%clk 00:00:51]} {[%emt 00:00:26]}
Rd8 {[%clk 00:02:42]} {[%emt 00:00:09]} 71. Rg6 {[%clk 00:01:18]} {[%emt
00:00:03]} Rf8+ {[%clk 00:03:07]} {[%emt 00:00:05]} 72. Ke3 {[%clk 00:00:31]}
{[%emt 00:01:17]} f2 {[%clk 00:03:28]} {[%emt 00:00:08]} 73. Rf6 {[%clk
00:00:57]} {[%emt 00:00:04]} Rxf6 {[%clk 00:03:33]} {[%emt 00:00:25]} 0-1

[Event "Tournoi de MI Clichy 92 2022"]
[Site "Clichy, France"]
[Date "2022.02.24"]
[Round "6.2"]
[White "Sorbe, Stephane"]
[Black "Valles Moreno, Ivan"]
[Result "1/2-1/2"]
[TimeControl "1H40 40 moves plus 30 minutes + 30 seconds from move one"]
[WhiteElo "2326"]
[BlackElo "2393"]

1. e4 {[%clk 01:26:19]} {[%emt 00:04:41]} c5 {[%clk 01:22:59]} {[%emt
00:08:00]} 2. Nc3 {[%clk 01:26:34]} {[%emt 00:00:16]} Nc6 {[%clk 01:23:21]}
{[%emt 00:00:07]} 3. g3 {[%clk 01:27:00]} {[%emt 00:00:05]} g6 {[%clk
01:23:45]} {[%emt 00:00:06]} 4. Bg2 {[%clk 01:27:27]} {[%emt 00:00:03]} Bg7
{[%clk 01:24:06]} {[%emt 00:00:08]} 5. d3 {[%clk 01:27:52]} {[%emt 00:00:06]}
d6 {[%clk 01:24:30]} {[%emt 00:00:05]} 6. Be3 {[%clk 01:28:15]} {[%emt
00:00:07]} Nd4 {[%clk 01:15:01]} {[%emt 00:09:58]} 7. f4 {[%clk 01:27:31]}
{[%emt 00:01:15]} Qd7 {[%clk 01:08:14]} {[%emt 00:07:15]} 8. Nf3 {[%clk
01:26:09]} {[%emt 00:01:54]} b6 {[%clk 01:00:31]} {[%emt 00:08:13]} 9. O-O
{[%clk 01:24:42]} {[%emt 00:01:57]} Bb7 {[%clk 01:00:51]} {[%emt 00:00:09]} 10.
a4 {[%clk 01:15:54]} {[%emt 00:09:19]} a6 {[%clk 00:59:14]} {[%emt 00:02:07]}
11. Qd2 {[%clk 00:59:53]} {[%emt 00:16:32]} Nh6 {[%clk 00:31:01]} {[%emt
00:28:42]} 12. h3 {[%clk 00:53:36]} {[%emt 00:06:47]} Nxf3+ {[%clk 00:29:47]}
{[%emt 00:01:43]} 13. Rxf3 {[%clk 00:54:02]} {[%emt 00:00:05]} f5 {[%clk
00:29:48]} {[%emt 00:00:29]} 14. Rff1 {[%clk 00:51:40]} {[%emt 00:02:53]} O-O
{[%clk 00:29:08]} {[%emt 00:01:07]} 15. Kh2 {[%clk 00:49:09]} {[%emt 00:03:03]}
e6 {[%clk 00:20:47]} {[%emt 00:08:51]} 16. Rfe1 {[%clk 00:46:21]} {[%emt
00:03:19]} d5 {[%clk 00:19:48]} {[%emt 00:01:28]} 17. exd5 {[%clk 00:39:58]}
{[%emt 00:06:54]} exd5 {[%clk 00:20:11]} {[%emt 00:00:06]} 18. Bg1 {[%clk
00:40:14]} {[%emt 00:00:15]} d4 {[%clk 00:18:35]} {[%emt 00:02:05]} 19. Nb1
{[%clk 00:39:31]} {[%emt 00:01:14]} Bxg2 {[%clk 00:16:25]} {[%emt 00:02:38]} 20.
Qxg2 {[%clk 00:39:25]} {[%emt 00:00:38]} Kh8 {[%clk 00:16:43]} {[%emt
00:00:11]} 21. Nd2 {[%clk 00:39:10]} {[%emt 00:00:46]} Rae8 {[%clk 00:16:56]}
{[%emt 00:00:14]} 22. Nc4 {[%clk 00:34:45]} {[%emt 00:04:59]} b5 {[%clk
00:13:44]} {[%emt 00:03:41]} 23. Nb6 {[%clk 00:31:30]} {[%emt 00:03:45]} Qd6
{[%clk 00:12:01]} {[%emt 00:02:12]} 24. a5 {[%clk 00:31:54]} {[%emt 00:00:07]}
Ng8 {[%clk 00:11:55]} {[%emt 00:00:35]} 25. Qd5 {[%clk 00:26:55]} {[%emt
00:05:29]} Qxd5 {[%clk 00:12:15]} {[%emt 00:00:10]} 26. Nxd5 {[%clk 00:27:22]}
{[%emt 00:00:03]} Nf6 {[%clk 00:12:36]} {[%emt 00:00:09]} 27. Nc7 {[%clk
00:26:35]} {[%emt 00:01:17]} Rc8 {[%clk 00:12:01]} {[%emt 00:01:05]} 28. Ne6
{[%clk 00:20:24]} {[%emt 00:06:41]} Rfe8 {[%clk 00:11:25]} {[%emt 00:01:05]} 29.
Re2 {[%clk 00:16:53]} {[%emt 00:04:02]} Nd5 {[%clk 00:11:20]} {[%emt 00:00:34]}
30. Rae1 {[%clk 00:17:06]} {[%emt 00:00:17]} Bf6 {[%clk 00:11:39]} {[%emt
00:00:12]} 31. Bf2 {[%clk 00:10:56]} {[%emt 00:06:40]} Kg8 {[%clk 00:09:38]}
{[%emt 00:02:30]} 32. Nxd4 {[%clk 00:08:38]} {[%emt 00:02:49]} Rxe2 {[%clk
00:09:19]} {[%emt 00:00:48]} 33. Nxe2 {[%clk 00:09:06]} {[%emt 00:00:03]} Bxb2
{[%clk 00:09:24]} {[%emt 00:00:24]} 34. c4 {[%clk 00:08:33]} {[%emt 00:01:04]}
bxc4 {[%clk 00:07:48]} {[%emt 00:02:06]} 35. dxc4 {[%clk 00:08:59]} {[%emt
00:00:04]} Nf6 {[%clk 00:08:10]} {[%emt 00:00:07]} 36. Rb1 {[%clk 00:08:55]}
{[%emt 00:00:35]} Ba3 {[%clk 00:08:21]} {[%emt 00:00:20]} 37. Rb6 {[%clk
00:06:40]} {[%emt 00:02:45]} Ne4 {[%clk 00:08:49]} {[%emt 00:00:02]} 38. Be1
{[%clk 00:06:13]} {[%emt 00:00:57]} Rd8 {[%clk 00:08:33]} {[%emt 00:00:46]} 39.
Nc3 {[%clk 00:02:31]} {[%emt 00:04:12]} Rd4 {[%clk 00:02:08]} {[%emt 00:06:55]}
40. Nxe4 {[%clk 00:01:25]} {[%emt 00:01:35]} Rxe4 {[%clk 00:01:04]} {[%emt
00:01:32]} 41. Bf2 {[%clk 00:27:55]} {[%emt 00:04:02]} Rxc4 {[%clk 00:27:59]}
{[%emt 00:03:34]} 42. Rxa6 {[%clk 00:27:58]} {[%emt 00:00:28]} Rc2 {[%clk
00:17:59]} {[%emt 00:10:27]} 43. Kg2 {[%clk 00:24:16]} {[%emt 00:04:15]} Bb2
{[%clk 00:10:12]} {[%emt 00:08:16]} 44. Kf3 {[%clk 00:23:58]} {[%emt 00:00:48]}
Rc3+ {[%clk 00:10:34]} {[%emt 00:00:07]} 1/2-1/2

[ePGN "0.1;DGT LiveChess/2.2.5"]

[Event "Tournoi de MI Clichy 92 2022"]
[Site "Clichy, France"]
[Date "2022.02.25"]
[Round "7.2"]
[White "Valles Moreno, Ivan"]
[Black "Mekhane, Adam"]
[Result "1-0"]
[TimeControl "1H40 40 moves plus 30 minutes + 30 seconds from move one"]
[WhiteElo "2393"]
[BlackElo "2316"]

1. Nf3 {[%clk 01:23:05]} {[%emt 00:07:52]} Nf6 {[%clk 01:30:45]} {[%emt
00:00:17]} 2. c4 {[%clk 01:23:27]} {[%emt 00:00:07]} e6 {[%clk 01:31:05]}
{[%emt 00:00:10]} 3. g3 {[%clk 01:23:41]} {[%emt 00:00:15]} d5 {[%clk
01:31:20]} {[%emt 00:00:15]} 4. Bg2 {[%clk 01:24:03]} {[%emt 00:00:08]} d4
{[%clk 01:30:49]} {[%emt 00:01:02]} 5. O-O {[%clk 01:24:23]} {[%emt 00:00:09]}
Nc6 {[%clk 01:31:10]} {[%emt 00:00:10]} 6. d3 {[%clk 01:24:30]} {[%emt
00:00:22]} Bc5 {[%clk 01:30:57]} {[%emt 00:00:44]} 7. Na3 {[%clk 01:11:49]}
{[%emt 00:13:10]} O-O {[%clk 01:29:22]} {[%emt 00:02:06]} 8. Rb1 {[%clk
01:12:02]} {[%emt 00:00:16]} e5 {[%clk 01:16:44]} {[%emt 00:13:10]} 9. Bg5
{[%clk 01:11:22]} {[%emt 00:01:08]} h6 {[%clk 01:09:32]} {[%emt 00:07:43]} 10.
Bxf6 {[%clk 01:11:01]} {[%emt 00:00:50]} Qxf6 {[%clk 01:09:46]} {[%emt
00:00:17]} 11. Nc2 {[%clk 01:10:25]} {[%emt 00:01:04]} a5 {[%clk 01:03:32]}
{[%emt 00:06:46]} 12. a3 {[%clk 00:53:04]} {[%emt 00:17:51]} a4 {[%clk
00:52:44]} {[%emt 00:11:18]} 13. Nd2 {[%clk 00:45:40]} {[%emt 00:07:52]} Qe7
{[%clk 00:48:38]} {[%emt 00:04:38]} 14. Ne4 {[%clk 00:41:26]} {[%emt 00:04:42]}
Bb6 {[%clk 00:34:12]} {[%emt 00:14:58]} 15. b4 {[%clk 00:40:16]} {[%emt
00:01:39]} axb3 {[%clk 00:34:36]} {[%emt 00:00:08]} 16. Rxb3 {[%clk 00:40:40]}
{[%emt 00:00:05]} Bd7 {[%clk 00:31:33]} {[%emt 00:03:33]} 17. Qb1 {[%clk
00:32:20]} {[%emt 00:08:49]} Ra7 {[%clk 00:24:08]} {[%emt 00:07:55]} 18. Rc1
{[%clk 00:24:15]} {[%emt 00:08:35]} Be6 {[%clk 00:19:30]} {[%emt 00:05:09]} 19.
Rb5 {[%clk 00:21:46]} {[%emt 00:02:58]} f5 {[%clk 00:17:33]} {[%emt 00:02:28]}
20. Nd2 {[%clk 00:21:44]} {[%emt 00:00:31]} Ra5 {[%emt 00:07:40]} 21. Nb3
{[%clk 00:09:14]} {[%emt 00:11:20]} Rxb5 {[%clk 00:11:28]} {[%emt 00:01:05]} 22.
cxb5 {[%clk 00:09:38]} {[%emt 00:00:06]} Na5 {[%clk 00:06:36]} {[%emt
00:05:23]} 23. Nxa5 {[%clk 00:09:19]} {[%emt 00:00:49]} Bxa5 {[%clk 00:07:05]}
{[%emt 00:00:01]} 24. Nb4 {[%clk 00:09:39]} {[%emt 00:00:09]} f4 {[%clk
00:04:35]} {[%emt 00:03:00]} 25. Bxb7 {[%clk 00:08:13]} {[%emt 00:01:56]} fxg3
{[%clk 00:04:59]} {[%emt 00:00:06]} 26. hxg3 {[%clk 00:08:09]} {[%emt
00:00:34]} Qg5 {[%clk 00:02:13]} {[%emt 00:03:17]} 27. Bf3 {[%clk 00:07:22]}
{[%emt 00:01:16]} h5 {[%clk 00:01:49]} {[%emt 00:00:55]} 28. Rc6 {[%clk
00:05:38]} {[%emt 00:02:14]} Bd7 {[%clk 00:01:00]} {[%emt 00:01:19]} 29. Qc1
{[%clk 00:05:24]} {[%emt 00:00:44]} Qf5 {[%clk 00:00:45]} {[%emt 00:00:46]} 30.
Bd5+ {[%clk 00:05:12]} {[%emt 00:00:42]} Rf7 {[%clk 00:00:32]} {[%emt
00:00:43]} 31. Bxf7+ {[%clk 00:05:17]} {[%emt 00:00:25]} Qxf7 {[%clk 00:00:56]}
{[%emt 00:00:07]} 32. Qc4 {[%clk 00:05:22]} {[%emt 00:00:24]} Bxc6 {[%clk
00:00:45]} {[%emt 00:00:41]} 33. Qxf7+ {[%clk 00:05:45]} {[%emt 00:00:06]} Kxf7
{[%clk 00:01:13]} {[%emt 00:00:02]} 34. Nxc6 {[%clk 00:06:07]} {[%emt
00:00:08]} 1-0

[Event "Tournoi de MI Clichy 92 2022"]
[Site "Clichy, France"]
[Date "2022.02.25"]
[Round "7.5"]
[White "Droin, Augustin"]
[Black "Sorbe, Stephane"]
[Result "1-0"]
[TimeControl "1H40 40 moves plus 30 minutes + 30 seconds from move one"]
[WhiteElo "2365"]
[BlackElo "2326"]

1. e4 {[%clk 01:30:57]} c6 {[%clk 01:30:43]} {[%emt 00:00:17]} 2. d4 {[%clk
01:31:15]} {[%emt 00:00:13]} d5 {[%clk 01:31:06]} {[%emt 00:00:06]} 3. e5
{[%clk 01:31:37]} {[%emt 00:00:09]} Bf5 {[%clk 01:31:29]} {[%emt 00:00:06]} 4.
h4 {[%clk 01:32:02]} {[%emt 00:00:05]} Qb6 {[%clk 01:29:48]} {[%emt 00:02:11]}
5. c4 {[%clk 01:31:14]} {[%emt 00:01:19]} dxc4 {[%clk 01:21:53]} {[%emt
00:08:26]} 6. Nc3 {[%clk 01:31:24]} {[%emt 00:00:20]} e6 {[%clk 01:19:18]}
{[%emt 00:03:05]} 7. Bxc4 {[%clk 01:30:21]} {[%emt 00:01:33]} h6 {[%clk
01:18:13]} {[%emt 00:01:34]} 8. Nge2 {[%clk 01:27:13]} {[%emt 00:03:38]} Ne7
{[%clk 01:11:04]} {[%emt 00:07:39]} 9. Bb3 {[%clk 01:18:08]} {[%emt 00:09:35]}
Nd5 {[%clk 01:06:17]} {[%emt 00:05:18]} 10. Ng3 {[%clk 01:16:08]} {[%emt
00:02:30]} Bh7 {[%clk 01:06:36]} {[%emt 00:00:10]} 11. O-O {[%clk 01:14:45]}
{[%emt 00:01:54]} Nd7 {[%clk 01:05:28]} {[%emt 00:01:38]} 12. Nxd5 {[%clk
01:04:42]} {[%emt 00:10:33]} cxd5 {[%clk 01:05:12]} {[%emt 00:00:46]} 13. Be3
{[%clk 01:03:44]} {[%emt 00:01:28]} O-O-O {[%clk 01:02:08]} {[%emt 00:03:34]}
14. Bc2 {[%clk 00:54:29]} {[%emt 00:09:45]} Bxc2 {[%clk 01:01:45]} {[%emt
00:00:54]} 15. Qxc2+ {[%clk 00:54:56]} {[%emt 00:00:03]} Kb8 {[%clk 01:02:09]}
{[%emt 00:00:06]} 16. Rab1 {[%clk 00:54:57]} {[%emt 00:00:29]} Be7 {[%clk
00:59:36]} {[%emt 00:03:02]} 17. h5 {[%clk 00:55:13]} {[%emt 00:00:15]} Qa6
{[%clk 00:58:25]} {[%emt 00:01:42]} 18. a4 {[%clk 00:52:40]} {[%emt 00:03:03]}
Bb4 {[%clk 00:53:56]} {[%emt 00:04:57]} 19. Rfc1 {[%clk 00:50:19]} {[%emt
00:02:52]} Rc8 {[%clk 00:52:40]} {[%emt 00:01:46]} 20. Qd1 {[%clk 00:50:18]}
{[%emt 00:00:31]} Rxc1 {[%clk 00:28:20]} {[%emt 00:24:50]} 21. Rxc1 {[%clk
00:50:20]} {[%emt 00:00:28]} Rc8 {[%clk 00:28:41]} {[%emt 00:00:08]} 22. Rxc8+
{[%clk 00:45:58]} {[%emt 00:04:52]} Kxc8 {[%clk 00:28:58]} {[%emt 00:00:14]} 23.
Qf3 {[%clk 00:42:59]} {[%emt 00:03:28]} Qxa4 {[%clk 00:25:03]} {[%emt
00:04:25]} 24. Qxf7 {[%clk 00:43:18]} {[%emt 00:00:12]} Qd1+ {[%clk 00:24:39]}
{[%emt 00:00:55]} 25. Nf1 {[%clk 00:42:25]} {[%emt 00:01:22]} Nf8 {[%clk
00:21:38]} {[%emt 00:03:30]} 26. Qxg7 {[%clk 00:39:58]} {[%emt 00:02:56]} Qxh5
{[%clk 00:22:04]} {[%emt 00:00:05]} 27. Bd2 {[%clk 00:40:22]} {[%emt 00:00:06]}
1-0

[Event "Tournoi de MI Clichy 92 2022"]
[Site "Clichy, France"]
[Date "2022.02.25"]
[Round "7.3"]
[White "Petrov, Martin"]
[Black "Onkoud, Abdelaziz"]
[Result "1-0"]
[TimeControl "1H40 40 moves plus 30 minutes + 30 seconds from move one"]
[WhiteElo "2547"]
[BlackElo "2317"]

1. e4 {[%clk 01:30:55]} {[%emt 00:00:03]} d6 {[%clk 01:30:41]} {[%emt
00:00:19]} 2. d4 {[%clk 01:31:04]} {[%emt 00:00:20]} g6 {[%clk 01:30:11]}
{[%emt 00:01:01]} 3. Nc3 {[%clk 01:29:04]} {[%emt 00:02:31]} Bg7 {[%clk
01:30:19]} {[%emt 00:00:21]} 4. f4 {[%clk 01:28:54]} {[%emt 00:00:41]} Nf6
{[%clk 01:28:21]} {[%emt 00:02:28]} 5. Nf3 {[%clk 01:29:08]} {[%emt 00:00:16]}
O-O {[%clk 01:27:11]} {[%emt 00:01:39]} 6. Bd3 {[%clk 01:28:55]} {[%emt
00:00:44]} Na6 {[%clk 01:27:34]} {[%emt 00:00:06]} 7. O-O {[%clk 01:27:56]}
{[%emt 00:01:29]} c5 {[%clk 01:27:09]} {[%emt 00:00:55]} 8. d5 {[%clk
01:23:30]} {[%emt 00:04:56]} Nc7 {[%clk 01:26:51]} {[%emt 00:00:47]} 9. a4
{[%clk 01:20:43]} {[%emt 00:03:19]} Rb8 {[%clk 01:26:34]} {[%emt 00:00:46]} 10.
Kh1 {[%clk 01:20:33]} {[%emt 00:00:40]} b6 {[%clk 01:26:12]} {[%emt 00:00:52]}
11. Nb5 {[%clk 01:13:32]} {[%emt 00:07:32]} a6 {[%clk 01:26:26]} {[%emt
00:00:15]} 12. Nxc7 {[%clk 01:08:32]} {[%emt 00:05:30]} Qxc7 {[%clk 01:26:49]}
{[%emt 00:00:06]} 13. c4 {[%clk 01:09:01]} {[%emt 00:00:02]} b5 {[%clk
01:21:30]} {[%emt 00:05:49]} 14. Qe2 {[%clk 01:05:19]} {[%emt 00:04:12]} bxc4
{[%clk 01:18:19]} {[%emt 00:03:41]} 15. Bxc4 {[%clk 01:05:48]} {[%emt
00:00:01]} Rb4 {[%clk 01:18:22]} {[%emt 00:00:26]} 16. Ra2 {[%clk 01:05:16]}
{[%emt 00:01:02]} Bd7 {[%clk 01:15:20]} {[%emt 00:03:33]} 17. b3 {[%emt
00:07:35]} e6 {[%clk 01:14:55]} {[%emt 00:00:50]} 18. Bd2 {[%emt 00:15:49]}
exd5 {[%clk 01:11:45]} {[%emt 00:03:37]} 19. Bxb4 {[%clk 00:37:39]} {[%emt
00:05:50]} dxc4 {[%clk 01:11:16]} {[%emt 00:00:59]} 20. Bc3 {[%clk 00:38:07]}
{[%emt 00:00:02]} cxb3 {[%clk 01:11:05]} {[%emt 00:00:40]} 21. Raa1 {[%clk
00:37:54]} {[%emt 00:00:43]} Re8 {[%clk 01:05:08]} {[%emt 00:06:27]} 22. Qb2
{[%clk 00:37:19]} {[%emt 00:01:06]} Nh5 {[%clk 01:04:53]} {[%emt 00:00:45]} 23.
Bxg7 {[%clk 00:35:53]} {[%emt 00:01:56]} Nxg7 {[%clk 01:05:07]} {[%emt
00:00:16]} 24. Qxb3 {[%clk 00:35:09]} {[%emt 00:01:14]} Rxe4 {[%clk 01:02:04]}
{[%emt 00:03:32]} 25. Ng5 {[%clk 00:35:14]} {[%emt 00:00:25]} Be6 {[%clk
01:02:00]} {[%emt 00:00:33]} 26. Qd3 {[%clk 00:33:23]} {[%emt 00:02:22]} Rb4
{[%clk 00:59:30]} {[%emt 00:02:59]} 27. Nxe6 {[%clk 00:33:40]} {[%emt
00:00:14]} fxe6 {[%clk 00:58:48]} {[%emt 00:01:11]} 28. Qxa6 {[%clk 00:33:41]}
{[%emt 00:00:30]} Qb8 {[%clk 00:52:49]} {[%emt 00:06:29]} 29. a5 {[%clk
00:32:30]} {[%emt 00:01:42]} Nf5 {[%clk 00:50:37]} {[%emt 00:02:40]} 30. Qd3
{[%clk 00:31:51]} {[%emt 00:01:09]} Qa8 {[%clk 00:40:18]} {[%emt 00:10:49]} 31.
a6 {[%clk 00:30:28]} {[%emt 00:01:53]} c4 {[%clk 00:31:43]} {[%emt 00:09:05]}
32. Qc3 {[%clk 00:25:59]} {[%emt 00:04:59]} Rb6 {[%clk 00:27:01]} {[%emt
00:05:11]} 33. Qxc4 {[%clk 00:26:07]} {[%emt 00:00:22]} d5 {[%clk 00:27:22]}
{[%emt 00:00:08]} 34. Qc7 {[%clk 00:25:38]} {[%emt 00:01:01]} 1-0